[Event "DVM U20 2019"]
[Site "Braunschweig"]
[Date "2019.12.28"]
[Round "3"]
[White "Jurga, Jonas Vincent"]
[Black "Gallas, Noel"]
[Result "1/2-1/2"]
[ECO "A04"]
[WhiteElo "1896"]
[BlackElo "1785"]
[Annotator "NA RC"]
[PlyCount "60"]
[EventDate "2019.12.27"]
[EventType "team-tourn"]
[EventRounds "7"]
[EventCountry "GER"]
[SourceTitle "playchess.com"]
[Source "ChessBase"]
[SourceQuality "1"]
[WhiteTeam "OSG Baden-Baden"]
[BlackTeam "SF Essen-Katernberg"]
[TimeControl "40/5400+30:1800+30"]

1. Nf3 {[%emt 0:00:23]} e6 {[%emt 0:00:40]} 2. g3 {[%emt 0:00:07]} d5 {[%emt 0:01:19]} 3. Bg2 {[%emt 0:00:06]} Nf6 {[%emt 0:00:31]} 4. O-O {[%emt 0:00:07]} Be7 {[%emt 0:00:38]} 5. d3 {[%emt 0:00:09] unterminated} O-O {[%emt 0:01:22]} 6. Qe1 {[%emt 0:00:08] unterminated} c5 {[%emt 0:03:39]} 7. e4 {[%emt 0:00:07] unterminated} Nc6 {[%emt 0:01:30]} 8. e5 {[%emt 0:00:09] unterminated} Nd7 {[%emt 0:03:05] unterminated} 9. c4 {[%emt 0:00:08] unterminated} Nb4 {[%emt 0:18:55] unterminated} 10. Qe2 {[%emt 0:00:53] unterminated} b6 {[%emt 0:04:43] unterminated} 11. Nc3 {[%emt 0:03:10] unterminated} Bb7 {[%emt 0:16:36] unterminated} 12. a3 {[%emt 0:01:55] unterminated} Na6 {unterminated} 13. h4 $11 {[%emt 0:02:38]} (13. cxd5 $16 exd5 14. e6) 13... Nc7 {[%emt 0:04:53]} 14. Bf4 {[%emt 0:07:03]} Re8 15. Rfe1 {[%emt 0:16:40]} f6 {[%emt 0:12:57]} 16. exf6 {[%emt 0:00:21]} Bxf6 {[%emt 0:00:56]} 17. Bxc7 {[%emt 0:00:40]} Qxc7 {[%emt 0:00:42]} 18. cxd5 {[%emt 0:00:17]} Bxc3 {[%emt 0:04:00]} 19. bxc3 {[%emt 0:00:54]} Bxd5 {[%emt 0:00:14]} 20. Ng5 {[%emt 0:00:55]} Bxg2 {[%emt 0:08:12]} 21. Kxg2 {[%emt 0:04:25]} Qc6+ {[%emt 0:02:42]} 22. Kg1 {[%emt 0:01:19]} h6 {[%emt 0:01:34]} 23. Ne4 {[%emt 0:02:30]} Rad8 {[%emt 0:01:13]} 24. f4 {[%emt 0:02:18]} Qd5 {[%emt 0:04:42]} 25. Rad1 {[%emt 0:04:08]} Nf8 {[%emt 0:01:48]} 26. Qg4 {[%emt 0:02:01]} Qf5 {[%emt 0:00:56] normal} 27. Nf2 {[%emt 0:08:57] normal} Qf6 {[%emt 0:03:44] normal} 28. Ne4 {[%emt 0:01:25]} Qf5 {[%emt 0:00:00] normal} 29. Nf2 {[%emt 0:01:35]} Qf6 {normal} 30. Ne4 {[%emt 0:01:05]} Qf5 {[%emt 0:00:06] normal} 1/2-1/2

[Event "DVM U20 2019"]
[Site "Braunschweig"]
[Date "2019.12.28"]
[Round "3"]
[White "Freiherr von Hauff, Christopher"]
[Black "Brunner, Wilken"]
[Result "1-0"]
[ECO "C58"]
[WhiteElo "1868"]
[BlackElo "1978"]
[Annotator "NA RC"]
[PlyCount "75"]
[EventDate "2019.12.27"]
[EventType "team-tourn"]
[EventRounds "7"]
[EventCountry "GER"]
[SourceTitle "playchess.com"]
[Source "ChessBase"]
[SourceQuality "1"]
[WhiteTeam "SK Bebenhausen"]
[BlackTeam "Karlsruher SF"]
[TimeControl "40/5400+30:1800+30"]

1. e4 {[%emt 0:00:00]} e5 {[%emt 0:00:00]} 2. Nf3 {[%emt 0:00:00]} Nc6 {[%emt 0:00:00]} 3. Bc4 {[%emt 0:00:01]} Nf6 {[%emt 0:00:03]} 4. Ng5 {[%emt 0:00:34]} d5 {[%emt 0:00:14]} 5. exd5 {[%emt 0:00:09]} Na5 {[%emt 0:00:07]} 6. d3 {[%emt 0:00:25] unterminated} Nxc4 {[%emt 0:04:42]} 7. dxc4 {[%emt 0:00:05]} h6 {[%emt 0:00:03] unterminated} 8. Nf3 {[%emt 0:01:46] unterminated} Bd6 {[%emt 0:01:48] unterminated} 9. Nc3 {[%emt 0:16:28] unterminated} e4 {[%emt 0:01:54] unterminated} 10. Qe2 {[%emt 0:01:07]} (10. Nd4 $16) 10... O-O $1 {[%emt 0:00:30] unterminated} 11. Nd4 {[%emt 0:01:30] unterminated} c5 {[%emt 0:06:44] unterminated} 12. Nb3 {[%emt 0:03:39] unterminated} Bg4 {[%emt 0:09:12] unterminated} 13. Qf1 {[%emt 0:00:46] unterminated} Qe7 {[%emt 0:06:30]} 14. Be3 {[%emt 0:01:22] unterminated} Rac8 {[%emt 0:02:18]} 15. h3 {[%emt 0:00:45] unterminated} Bd7 $14 {[%emt 0:01:37]} 16. O-O-O {[%emt 0:00:55]} Nh5 {[%emt 0:00:48]} 17. g4 {[%emt 0:16:38]} Nf4 {[%emt 0:00:59]} 18. Ne2 {[%emt 0:00:12]} Qf6 19. Ng3 {[%emt 0:02:32]} Rfe8 {[%emt 0:03:00]} 20. Nd2 {[%emt 0:00:55]} Qg6 {[%emt 0:09:44]} 21. Kb1 {[%emt 0:02:42]} a6 {[%emt 0:05:52]} 22. Re1 {[%emt 0:05:11]} f5 {[%emt 0:03:04]} 23. gxf5 {[%emt 0:02:20]} Bxf5 {[%emt 0:00:09]} 24. Nxf5 {[%emt 0:01:54]} Qxf5 {[%emt 0:00:47]} 25. Nb3 {[%emt 0:02:29]} Qf6 {[%emt 0:09:36]} 26. Rg1 {[%emt 0:04:12]} Rc7 {[%emt 0:10:13]} 27. Bd2 {[%emt 0:07:13]} Qf5 {[%emt 0:03:09]} 28. Bxf4 {[%emt 0:01:16]} Bxf4 {[%emt 0:01:22]} 29. Qg2 {[%emt 0:00:22]} Qe5 {[%emt 0:03:22]} 30. Nxc5 {[%emt 0:05:30]} Qd4 {[%emt 0:06:23]} 31. Ne6 {[%emt 0:03:33]} Rxe6 {[%emt 0:00:08]} 32. dxe6 {[%emt 0:00:07]} Be5 {[%emt 0:00:05]} 33. c3 {[%emt 0:01:40]} Qd3+ {[%emt 0:00:07]} 34. Ka1 {[%emt 0:02:42]} Bxc3 {[%emt 0:00:37]} 35. Rd1 {[%emt 0:01:48]} Bxb2+ {[%emt 0:03:54]} 36. Kxb2 {[%emt 0:00:07]} Qxc4 {[%emt 0:00:07]} 37. Rd8+ {[%emt 0:00:09]} Kh7 {[%emt 0:00:06]} 38. Qg6# {[%emt 0:00:05] normal} 1-0

[Event "DVM U20 2019"]
[Site "Braunschweig"]
[Date "2019.12.28"]
[Round "3"]
[White "Schamschurko, Andre"]
[Black "Verfuerth, Kevin"]
[Result "0-1"]
[ECO "B23"]
[WhiteElo "1868"]
[BlackElo "2038"]
[Annotator "NA"]
[PlyCount "111"]
[EventDate "2019.12.27"]
[EventType "team-tourn"]
[EventRounds "7"]
[EventCountry "GER"]
[SourceTitle "playchess.com"]
[Source "ChessBase"]
[SourceQuality "1"]
[WhiteTeam "USV TU Dresden"]
[BlackTeam "SK Turm Kleve"]
[TimeControl "40/5400+30:1800+30"]

1. e4 {[%emt 0:00:00]} c5 {[%emt 0:00:00]} 2. Nc3 {[%emt 0:00:00]} g6 {[%emt 0:00:00]} 3. f4 {[%emt 0:00:00]} Bg7 {[%emt 0:00:00]} 4. Nf3 {[%emt 0:00:00]} Nc6 {[%emt 0:00:04] unterminated} 5. Bb5 {[%emt 0:00:00]} Nd4 {[%emt 0:01:01]} 6. d3 {[%emt 0:00:39] unterminated} Nxb5 {[%emt 0:10:24]} 7. Nxb5 {[%emt 0:00:07] unterminated} d6 {[%emt 0:10:03] unterminated} 8. O-O {[%emt 0:01:55] unterminated} a6 {[%emt 0:04:00] unterminated} 9. Nc3 {[%emt 0:00:48]} b5 {[%emt 0:00:17] unterminated B23: Closed Sicilian: Lines without g3} 10. Qe1 {[%emt 0:02:44] unterminated} b4 {[%emt 0:02:03]} (10... Bb7 11. a3 Nf6 12. Qh4 Nd7 13. f5 gxf5 14. Qh5 Nf6 15. Qxf5 Rg8 16. Qf4 Qd7 17. h3 {½-½ (47) Pirs,M (2534)-Magalhaes,L (2537) ICCF email 2014}) 11. Ne2 {[%emt 0:01:30] unterminated} Nf6 {[%emt 0:17:24]} 12. Kh1 $146 {[%emt 0:03:57]} ({Predecessor:} 12. Qh4 c4 13. f5 cxd3 14. cxd3 e6 15. Bh6 O-O 16. Ng5 exf5 17. exf5 {1-0 (27) Sarkoezy,B (2110)-Knickel,A (2148) Hessen 2018}) 12... Bg4 {[%emt 0:04:32]} 13. Neg1 {[%emt 0:07:52]} O-O {[%emt 0:01:32]} 14. Qh4 {[%emt 0:02:30]} Qc8 {[%emt 0:02:59]} 15. h3 {[%emt 0:10:28]} Bd7 {[%emt 0:08:11]} 16. Ne2 {[%emt 0:02:58]} c4 {[%emt 0:00:40]} 17. e5 {[%emt 0:07:21]} cxd3 {[%emt 0:02:33]} 18. cxd3 {[%emt 0:01:03]} Nd5 {[%emt 0:00:46]} 19. Ned4 {[%emt 0:05:53]} Bb5 {[%emt 0:03:12]} 20. Nxb5 {[%emt 0:03:44]} axb5 {[%emt 0:00:01]} 21. d4 {[%emt 0:00:28]} Rxa2 {[%emt 0:02:53]} 22. Rxa2 {[%emt 0:04:08]} Qc4 {[%emt 0:00:02]} 23. Re1 {[%emt 0:01:00]} Qxa2 {[%emt 0:00:07]} 24. f5 {[%emt 0:02:08]} Qb1 {[%emt 0:03:57]} 25. Bg5 {[%emt 0:16:42]} Qxf5 {[%emt 0:00:38]} 26. Bxe7 {[%emt 0:00:06]} Nxe7 {[%emt 0:01:10]} 27. Qxe7 {[%emt 0:00:07]} dxe5 {[%emt 0:00:30]} 28. Nxe5 {[%emt 0:00:30]} Bxe5 29. dxe5 {[%emt 0:05:14]} b3 {[%emt 0:03:10]} 30. Qf6 {[%emt 0:04:29]} Qd7 {[%emt 0:07:13]} 31. Qd6 {[%emt 0:04:17]} Rd8 {[%emt 0:01:57]} 32. Qxd7 {[%emt 0:07:36]} Rxd7 {[%emt 0:00:01]} 33. Re3 {[%emt 0:00:24]} Re7 {[%emt 0:00:10]} 34. Kg1 {[%emt 0:00:33]} Re6 {[%emt 0:05:20]} 35. Kf2 {[%emt 0:01:23]} f6 {[%emt 0:00:52]} 36. exf6 {[%emt 0:00:50]} Rxe3 {[%emt 0:00:06]} 37. Kxe3 {[%emt 0:00:10]} Kf7 {[%emt 0:00:01]} 38. Kd4 {[%emt 0:00:14]} Kxf6 {[%emt 0:00:01]} 39. Kc5 {[%emt 0:01:24]} Kf5 {[%emt 0:00:08]} 40. Kxb5 {[%emt 0:00:07]} Kf4 {[%emt 0:00:08]} 41. Kc4 {[%emt 0:30:04]} Kg3 {[%emt 0:30:09]} 42. Kxb3 {[%emt 0:00:10]} Kxg2 {[%emt 0:00:09]} 43. Kc3 {[%emt 0:00:10]} Kxh3 {[%emt 0:00:33]} 44. b4 {[%emt 0:00:23]} g5 {[%emt 0:00:05]} 45. b5 {[%emt 0:00:03]} g4 {[%emt 0:00:05]} 46. b6 {[%emt 0:00:03]} g3 {[%emt 0:00:09]} 47. b7 {[%emt 0:00:04]} g2 {[%emt 0:00:04]} 48. b8=Q {[%emt 0:00:12]} g1=Q {[%emt 0:00:10] unterminated} 49. Qc8+ {[%emt 0:02:07] unterminated} Qg4 {[%emt 0:02:15]} 50. Qb7 {[%emt 0:00:23] unterminated} Qg3+ {[%emt 0:01:02] unterminated} 51. Kd4 {[%emt 0:01:09] unterminated} h5 {[%emt 0:06:57] unterminated} 52. Qh1+ {[%emt 0:02:04] unterminated} Kg4 $19 {[%emt 0:00:09]} 53. Qd1+ {[%emt 0:00:00]} Kg5 {[%emt 0:00:00]} 54. Qa1 {[%emt 0:00:00]} h4 {[%emt 0:00:00]} 55. Ke4 {[%emt 0:00:00]} Qf4+ {[%emt 0:00:00]} 56. Kd3 {[%emt 0:00:00] normal} 0-1

[Event "DVM U20 2019"]
[Site "Braunschweig"]
[Date "2019.12.28"]
[Round "3"]
[White "von Angern, Cedric"]
[Black "Gerold, Robin"]
[Result "1-0"]
[ECO "B38"]
[WhiteElo "1867"]
[BlackElo "1448"]
[Annotator "NA"]
[PlyCount "149"]
[EventDate "2019.12.27"]
[EventType "team-tourn"]
[EventRounds "7"]
[EventCountry "GER"]
[SourceTitle "playchess.com"]
[Source "ChessBase"]
[SourceQuality "1"]
[WhiteTeam "SG Aufbau Elbe Magdeburg"]
[BlackTeam "SF HN-Biberach"]
[TimeControl "40/5400+30:1800+30"]

1. e4 {[%emt 0:00:00]} c5 {[%emt 0:00:00]} 2. Nf3 {[%emt 0:00:00]} Nc6 {[%emt 0:00:00]} 3. d4 {[%emt 0:00:25]} cxd4 {[%emt 0:00:42]} 4. Nxd4 {[%emt 0:00:05]} g6 {[%emt 0:00:07]} 5. c4 {[%emt 0:00:07]} Bg7 {[%emt 0:01:29]} 6. Be3 {[%emt 0:00:34]} Nf6 {[%emt 0:00:21]} 7. Nc3 {[%emt 0:00:15]} O-O {[%emt 0:00:42] unterminated} 8. Be2 {[%emt 0:01:09]} Re8 {[%emt 0:00:47] B38: Sicilian: Maroczy Bind with 5...Bg7 and 7...0-0} (8... d6 9. O-O Bd7 10. Nc2 Be6 11. Rc1 Nd7 12. Qd2 a5 13. f3 a4 14. Na3 Qa5 15. f4 Nc5 16. Bf3 Nb4 17. Be2 Nxa2 18. Nxa2 Qxd2 19. Bxd2 {0-1 (66) So,W (2765)-Iturrizaga Bonelli,E (2637) chess.com INT 2019}) 9. O-O {[%emt 0:00:45] unterminated} b6 $146 {[%emt 0:06:03] unterminated} ({Predecessor:} 9... d6 10. Qd2 a6 11. Rac1 Bd7 12. Rfd1 Rc8 13. f3 Ne5 14. b3 Qc7 15. Nd5 Qb8 16. h3 Nxd5 17. cxd5 f6 18. f4 Nf7 19. Ne6 Bxe6 20. dxe6 Nd8 21. f5 g5 22. Rxc8 Qxc8 {1-0 (62) Alvarez Alonso,A (1635)-Pozo Vinuesa,P (1556) Costa Teguise 2014}) 10. Qd2 {[%emt 0:00:52]} Bb7 {[%emt 0:00:22]} 11. f3 {[%emt 0:00:35] unterminated} e6 {[%emt 0:00:27] unterminated} 12. Rfd1 {[%emt 0:04:24] unterminated} d5 {[%emt 0:02:32] unterminated} 13. Nxc6 {[%emt 0:04:09]} Bxc6 {[%emt 0:00:10]} 14. cxd5 {[%emt 0:00:34]} exd5 {[%emt 0:00:06]} 15. exd5 {[%emt 0:00:34] unterminated} Nxd5 {[%emt 0:00:52] unterminated} 16. Nxd5 {[%emt 0:02:22]} Qxd5 {[%emt 0:00:40] unterminated} 17. Qxd5 {[%emt 0:02:41]} Bxd5 {[%emt 0:00:04]} 18. Kf2 {[%emt 0:01:31] unterminated} Be6 {[%emt 0:01:29] unterminated} 19. Bd4 {[%emt 0:02:55] unterminated} Red8 {[%emt 0:02:18]} 20. Bxg7 {[%emt 0:00:57]} Kxg7 {[%emt 0:00:02] unterminated} 21. a3 {[%emt 0:13:36] unterminated} Rac8 {[%emt 0:04:16] unterminated} 22. Rxd8 {[%emt 0:04:55]} Rxd8 {[%emt 0:00:06]} 23. Rd1 {[%emt 0:06:47]} Rxd1 {[%emt 0:02:53]} 24. Bxd1 {[%emt 0:00:06]} Kf6 {[%emt 0:00:01]} 25. Ke3 {[%emt 0:00:59]} Ke5 {[%emt 0:01:18]} 26. f4+ {[%emt 0:06:04]} Kd5 {[%emt 0:10:06]} 27. Bb3+ {[%emt 0:06:05]} Kd6 {[%emt 0:00:20]} 28. Bxe6 {[%emt 0:00:38]} Kxe6 {[%emt 0:00:06]} 29. Ke4 {[%emt 0:00:37]} f5+ {[%emt 0:00:29]} 30. Kd4 {[%emt 0:00:33]} Kd6 {[%emt 0:00:09] unterminated} 31. b3 {[%emt 0:08:11]} a6 {[%emt 0:00:12]} 32. b4 {[%emt 0:01:11]} Ke6 {[%emt 0:02:14]} 33. a4 {[%emt 0:12:24]} Kd6 {[%emt 0:00:16]} 34. h3 {[%emt 0:07:43]} h6 {[%emt 0:00:53]} 35. a5 {[%emt 0:05:26]} bxa5 {[%emt 0:01:04]} 36. bxa5 {[%emt 0:00:41]} Kc6 {[%emt 0:14:40]} 37. Ke5 {[%emt 0:00:23]} Kb5 {[%emt 0:00:08]} 38. g4 {[%emt 0:04:05]} Kxa5 {[%emt 0:01:12]} 39. gxf5 {[%emt 0:01:04]} gxf5 {[%emt 0:00:12]} 40. Kxf5 {[%emt 0:00:04]} Kb5 {[%emt 0:00:06]} 41. Kg6 {[%emt 0:04:36]} a5 {[%emt 0:00:08]} 42. f5 {[%emt 0:00:06]} a4 {[%emt 0:00:03]} 43. f6 {[%emt 0:00:11]} a3 {[%emt 0:00:08]} 44. f7 {[%emt 0:00:06]} a2 {[%emt 0:00:01]} 45. f8=Q a1=Q 46. Qf5+ {[%emt 0:01:56] unterminated} Kc4 {[%emt 0:01:37]} 47. Kxh6 {[%emt 0:00:58] unterminated} Qh8+ {[%emt 0:01:07] unterminated} 48. Kg5 {[%emt 0:02:06] unterminated} Qg8+ {[%emt 0:01:44] unterminated} 49. Kf4 {[%emt 0:05:22] unterminated} Qb8+ {[%emt 0:01:11] unterminated} 50. Kf3 {[%emt 0:02:39]} Qb3+ {[%emt 0:00:28]} 51. Kg4 {[%emt 0:00:36] unterminated} Qd1+ {[%emt 0:00:31] unterminated} 52. Kg5 {[%emt 0:03:39] unterminated} Qd8+ {[%emt 0:00:18]} 53. Kg6 {[%emt 0:00:56]} Qg8+ {[%emt 0:00:55] unterminated} 54. Kh5 {[%emt 0:01:49]} Qh8+ {[%emt 0:00:56] unterminated} 55. Kg4 {[%emt 0:00:38]} Qg7+ {[%emt 0:00:27] unterminated} 56. Qg5 {[%emt 0:01:09] unterminated} Qd7+ {[%emt 0:00:16]} 57. Kg3 {[%emt 0:01:54] unterminated} Qd3+ {[%emt 0:00:36] unterminated} 58. Kh4 {[%emt 0:08:18]} Qh7+ {[%emt 0:00:25] unterminated} 59. Kg4 {[%emt 0:01:28] unterminated} Qd7+ {[%emt 0:00:19]} 60. Qf5 {[%emt 0:00:10] unterminated} Qg7+ {[%emt 0:03:07]} 61. Kf3 {[%emt 0:01:29]} Qc3+ {[%emt 0:00:34]} 62. Kf4 {[%emt 0:00:18]} Qd2+ {[%emt 0:00:26] unterminated} 63. Ke5 {[%emt 0:00:08]} Qd5+ {[%emt 0:00:57] [#]} 64. Kf6 $1 {[%emt 0:00:15] unterminated} Qd8+ {[%emt 0:00:42] unterminated} 65. Kg7 {[%emt 0:00:30] unterminated} Qd4+ {[%emt 0:00:17] unterminated} 66. Qf6 {[%emt 0:02:17]} Qg1+ {[%emt 0:00:23]} 67. Kh7 {[%emt 0:01:06] unterminated} Qb1+ {[%emt 0:01:23]} 68. Qg6 {[%emt 0:00:27]} Qb7+ {[%emt 0:00:14] unterminated} 69. Kh8 {[%emt 0:00:20] unterminated} (69. Kh6 $16) 69... Qh1 {[%emt 0:01:44]} 70. Qg4+ {[%emt 0:00:19]} Kc5 {[%emt 0:03:39]} 71. Qg5+ {[%emt 0:00:10]} Kd6 {[%emt 0:00:33]} 72. Qf6+ {[%emt 0:00:31]} Kc5 {[%emt 0:00:28]} 73. h4 {[%emt 0:00:06] unterminated} Qa8+ {[%emt 0:01:09]} 74. Kg7 {[%emt 0:00:22]} Qb7+ $18 {[%emt 0:00:39] unterminated} 75. Kh6 {[%emt 0:00:34] normal} 1-0

[Event "DVM U20 2019"]
[Site "Braunschweig"]
[Date "2019.12.28"]
[Round "3"]
[White "Hennemann, Florian"]
[Black "Düro, Liam"]
[Result "0-1"]
[ECO "B18"]
[WhiteElo "1865"]
[BlackElo "1841"]
[Annotator "NA RC"]
[PlyCount "100"]
[EventDate "2019.12.27"]
[EventType "team-tourn"]
[EventRounds "7"]
[EventCountry "GER"]
[SourceTitle "playchess.com"]
[Source "ChessBase"]
[SourceQuality "1"]
[WhiteTeam "Sges Bensheim"]
[BlackTeam "SG Trier"]
[TimeControl "40/5400+30:1800+30"]

1. e4 {[%emt 0:00:00]} c6 {[%emt 0:00:00]} 2. d4 {[%emt 0:00:00]} d5 {[%emt 0:00:00]} 3. Nc3 {[%emt 0:00:00]} dxe4 {[%emt 0:00:00]} 4. Nxe4 {[%emt 0:00:00]} Bf5 {[%emt 0:00:00]} 5. Ng3 {[%emt 0:00:00]} Bg6 {[%emt 0:00:00]} 6. Be3 {[%emt 0:01:22] B18: Classical Caro-Kann: 4...Bf5 sidelines} (6. h4 h6 7. Nf3 e6 8. h5 Bh7 9. Bd3 Bxd3 10. Qxd3 Nf6 11. Bd2 c5 12. O-O-O Nc6 13. Bc3 Qd5 14. dxc5 Qxd3 15. cxd3 Bxc5 16. Bxf6 gxf6 17. d4 Bb6 18. d5 Ne7 19. dxe6 fxe6 20. Ne4 {½-½ (32) Andreikin,D (2725)-Howell,D (2693) Astana 2019}) 6... e6 {[%emt 0:01:45]} 7. Nf3 {[%emt 0:01:03]} Nf6 {[%emt 0:00:37]} 8. Bd3 {[%emt 0:03:31]} Bxd3 {[%emt 0:00:09]} 9. Qxd3 {[%emt 0:00:04]} Nbd7 {[%emt 0:00:49] unterminated} 10. O-O-O {[%emt 0:05:11] unterminated} Qa5 {[%emt 0:00:52] unterminated} 11. Kb1 {[%emt 0:04:07] unterminated} h6 $146 {[%emt 0:02:31] unterminated} ({Predecessor:} 11... O-O-O 12. Ng5 Qc7 13. Nxf7 Nc5 14. Qe2 Qxf7 15. dxc5 Rd5 16. c4 {1-0 (35) Fayolle,G (1937)-Mabelly,R (1980) Montigny le Bretonneux 2007}) 12. Rhe1 {[%emt 0:01:59]} O-O-O {[%emt 0:00:38] unterminated} 13. Qb3 {[%emt 0:08:13] unterminated} Nd5 {[%emt 0:06:19] unterminated} 14. c4 {[%emt 0:09:02]} Nxe3 {[%emt 0:00:39] unterminated} 15. fxe3 {[%emt 0:02:52] unterminated} Bd6 {[%emt 0:02:14] unterminated} 16. Ne4 {[%emt 0:06:14] unterminated} Qf5 {[%emt 0:02:29] unterminated} 17. Qc2 {[%emt 0:00:19]} Bc7 {[%emt 0:01:28] unterminated} 18. Rf1 {[%emt 0:09:31] unterminated} Qg6 {[%emt 0:03:05] unterminated} 19. g3 {[%emt 0:01:41] unterminated} Nb6 {[%emt 0:03:54] unterminated} 20. b3 {[%emt 0:06:29] unterminated} Kb8 {[%emt 0:03:32] unterminated} 21. Nh4 {[%emt 0:06:31] unterminated} Qh5 {[%emt 0:07:12] unterminated} 22. Qf2 $11 {[%emt 0:03:27]} Rhf8 {[%emt 0:03:46]} 23. Nc5 {[%emt 0:03:15]} Nd7 {[%emt 0:04:16]} 24. Ne4 {[%emt 0:03:23]} Qa5 {[%emt 0:02:42]} 25. Qc2 {[%emt 0:02:16]} g5 {[%emt 0:01:34]} 26. Nf3 {[%emt 0:00:29]} f5 {[%emt 0:01:23]} 27. Nc3 {[%emt 0:00:18]} Nf6 {[%emt 0:00:58]} 28. Nd2 {[%emt 0:04:07]} Ng4 {[%emt 0:01:49]} 29. Qd3 {[%emt 0:03:30]} Nxh2 {[%emt 0:00:59]} 30. Rh1 {[%emt 0:00:21]} Ng4 {[%emt 0:01:41]} 31. Rdf1 {[%emt 0:02:11]} Bxg3 {[%emt 0:01:10]} 32. c5 {[%emt 0:00:20]} Nf2 {[%emt 0:01:25]} 33. Rxf2 Bxf2 {[%emt 0:00:06]} 34. Nc4 {[%emt 0:01:35]} Qxc5 {[%emt 0:02:55]} 35. Qc2 {[%emt 0:02:41]} Rxd4 {[%emt 0:02:52]} 36. exd4 Bxd4 {[%emt 0:00:25]} 37. Na4 {[%emt 0:01:55]} Qd5 {[%emt 0:00:28]} 38. Qh2+ {[%emt 0:01:50]} f4 {[%emt 0:01:31]} 39. Qxh6 {[%emt 0:02:20]} Qf5+ {[%emt 0:01:21]} 40. Kc1 {[%emt 0:00:14]} b5 {[%emt 0:02:44]} 41. Rd1 {[%emt 0:31:33]} Rh8 42. Qxh8+ {[%emt 0:03:25]} Bxh8 {[%emt 0:30:53]} 43. Rd8+ {[%emt 0:00:14]} Kc7 {[%emt 0:01:04]} 44. Rxh8 {[%emt 0:00:10]} bxc4 {[%emt 0:00:16]} 45. Ra8 {[%emt 0:00:50]} Kb7 {[%emt 0:00:27]} 46. Rd8 {[%emt 0:00:18]} cxb3 {[%emt 0:00:54]} 47. axb3 {[%emt 0:00:09]} f3 {[%emt 0:00:25]} 48. Rd7+ {[%emt 0:00:25]} Kc8 {[%emt 0:00:14]} 49. Rxa7 {[%emt 0:00:17] normal} f2 {[%emt 0:01:11]} 50. Nb6+ {[%emt 0:01:05]} Kb8 {[%emt 0:00:14] normal} 0-1

[Event "DVM U20 2019"]
[Site "Braunschweig"]
[Date "2019.12.28"]
[Round "3"]
[White "Doepper, Anna Berenice"]
[Black "Martin III, Richard"]
[Result "1/2-1/2"]
[ECO "B22"]
[WhiteElo "1855"]
[BlackElo "2043"]
[Annotator "NA RC"]
[PlyCount "68"]
[EventDate "2019.12.27"]
[EventType "team-tourn"]
[EventRounds "7"]
[EventCountry "GER"]
[SourceTitle "playchess.com"]
[Source "ChessBase"]
[SourceQuality "1"]
[WhiteTeam "SF Essen-Katernberg"]
[BlackTeam "OSG Baden-Baden"]
[TimeControl "40/5400+30:1800+30"]

1. e4 {[%emt 0:00:00]} c5 {[%emt 0:00:00]} 2. c3 {[%emt 0:00:00]} Nf6 {[%emt 0:00:00]} 3. e5 {[%emt 0:00:00]} Nd5 {[%emt 0:00:00]} 4. d4 {[%emt 0:00:00]} cxd4 {[%emt 0:00:00]} 5. cxd4 {[%emt 0:00:00]} e6 {[%emt 0:00:00]} 6. Nf3 {[%emt 0:00:00]} d6 {[%emt 0:00:00]} 7. Bc4 {[%emt 0:00:40]} Nc6 {[%emt 0:00:07]} 8. O-O {[%emt 0:00:08]} Be7 {[%emt 0:00:04]} 9. Qe2 {[%emt 0:00:04]} O-O {[%emt 0:00:05]} 10. Nc3 {[%emt 0:00:04]} Nxc3 {[%emt 0:00:28]} 11. bxc3 {[%emt 0:00:04]} dxe5 {[%emt 0:00:09]} 12. dxe5 {[%emt 0:00:06]} Qa5 {[%emt 0:02:19]} 13. Bd2 {[%emt 0:02:30]} Bd7 {[%emt 0:02:15]} 14. Bd3 {[%emt 0:13:15]} Rfd8 {[%emt 0:00:20]} 15. Qe4 {[%emt 0:00:15]} g6 {[%emt 0:00:03] unterminated} 16. Rab1 {[%emt 0:11:47] unterminated} Qc7 {[%emt 0:08:20] unterminated} 17. h4 {[%emt 0:03:24] unterminated} Na5 {[%emt 0:04:07] unterminated} 18. Nd4 {[%emt 0:07:13] unterminated} Bc6 {[%emt 0:06:59] unterminated} 19. Qf4 {[%emt 0:02:50] unterminated} Bd5 {[%emt 0:07:35] unterminated} 20. Rfe1 {[%emt 0:10:54] unterminated} a6 {[%emt 0:12:44] unterminated} 21. a4 {[%emt 0:17:12] unterminated} Nc4 {[%emt 0:01:24] unterminated} 22. Bxc4 {[%emt 0:04:55]} Qxc4 {[%emt 0:00:50]} 23. h5 {[%emt 0:00:07] unterminated} Bc5 {[%emt 0:03:46] unterminated} 24. Qg4 {[%emt 0:03:35] unterminated} Bxd4 {[%emt 0:02:33]} 25. cxd4 $11 {[%emt 0:00:08]} Qd3 {[%emt 0:00:08]} 26. Bg5 {[%emt 0:02:25]} Rdc8 {[%emt 0:00:29]} 27. Red1 {[%emt 0:01:16]} Qe4 {[%emt 0:00:48]} 28. Qxe4 {[%emt 0:00:15]} Bxe4 {[%emt 0:00:04]} 29. Rbc1 {[%emt 0:00:02]} Rxc1 {[%emt 0:03:21]} 30. Rxc1 {[%emt 0:00:08]} Bc6 {[%emt 0:00:02]} 31. a5 {[%emt 0:00:21] normal} h6 {[%emt 0:01:27] normal} 32. Be7 {[%emt 0:02:00]} gxh5 {[%emt 0:00:44] normal} 33. Rc3 {[%emt 0:01:36] normal} Kh7 {[%emt 0:00:29]} 34. Rg3 {[%emt 0:00:13] normal} Rg8 {[%emt 0:03:34] normal} 1/2-1/2